fUSD/lending_fUSD_20240527
["ID","MTS","AMOUNT","RATE_DAILY","PERIOD"]
[328024938,1716774675642,-500.0,0.00029315,4]
[328024939,1716774675651,-903.17,0.00029315,4]
[328024940,1716774675661,-500.0,0.00029315,4]
[328024941,1716774675670,-500.0,0.00029315,4]
[328024942,1716774675679,-500.0,0.00029315,4]
[328024943,1716774675687,-500.0,0.00029315,4]
[328024944,1716774675698,-500.0,0.00029315,4]
[328024945,1716774675707,-500.0,0.00029315,4]
[328024946,1716774675717,-419.12372868,0.00029315,4]
[328024947,1716774675726,-500.0,0.00029315,4]
[328024948,1716774675736,-500.0,0.00029315,4]
[328024949,1716774675746,-500.0,0.00029315,4]
[328024950,1716774675755,-500.0,0.00029315,4]
[328024951,1716774675764,-500.0,0.00029315,4]
[328024952,1716774675773,-500.0,0.00029315,4]
[328024953,1716774675783,-500.0,0.00029315,4]
[328024954,1716774675792,-500.0,0.00029315,4]
[328024955,1716774675802,-500.0,0.00029315,4]
[328024956,1716774675811,-1792.24,0.00029315,4]
[328024957,1716774675820,-500.0,0.00029315,4]
[328024958,1716774675830,-500.0,0.00029315,4]
[328024959,1716774675840,-500.0,0.00029315,4]
[328024960,1716774675851,-500.0,0.00029315,4]
[328024961,1716774675861,-500.0,0.00029315,4]
[328024962,1716774675870,-500.0,0.00029315,4]
[328024963,1716774675880,-500.0,0.00029315,4]
[328024964,1716774675890,-555.55,0.00029315,4]
[328024965,1716774675899,-500.0,0.00029315,4]
[328024966,1716774675908,-500.0,0.00029315,4]
[328024967,1716774675919,-500.0,0.00029315,4]
[328024968,1716774675929,-500.0,0.00029315,4]
[328024969,1716774675939,-500.0,0.00029315,4]
[328024970,1716774675949,-392.03275606,0.00029315,4]
[328024971,1716774675958,-554.9,0.00029315,4]
[328024972,1716774675967,-500.0,0.00029315,4]
[328024973,1716774675976,-500.0,0.00029315,4]
[328024974,1716774675985,-593.69,0.00029315,4]
[328024975,1716774675995,-1375.79,0.00029315,4]
[328024976,1716774676004,-797.4,0.00029315,4]
[328024977,1716774676014,-500.0,0.00029315,4]
[328024978,1716774676023,-500.0,0.00029315,4]
[328024979,1716774676035,-500.0,0.00029315,4]
[328024980,1716774676045,-811.5,0.00029315,4]
[328024981,1716774676057,-500.0,0.00029315,4]
[328024982,1716774676066,-500.0,0.00029315,4]
[328024983,1716774676075,-500.0,0.00029315,4]
[328024984,1716774676085,-500.0,0.00029315,4]
[328024985,1716774676096,-500.0,0.00029315,4]
[328024986,1716774676105,-752.63,0.00029315,4]
[328024987,1716774676115,-500.0,0.00029315,4]
[328024988,1716774676123,-500.0,0.00029315,4]
[328024989,1716774676134,-500.0,0.00029315,4]
[328024990,1716774676143,-508.3,0.00029315,4]
[328024991,1716774676152,-267.99381596,0.00029315,4]
[328024992,1716774676162,-500.0,0.00029315,4]
[328024993,1716774676229,-500.0,0.00029315,4]
[328024994,1716774676240,-500.0,0.00029315,4]
[328024995,1716774676249,-612.14,0.00029315,4]
[328024996,1716774676259,-500.0,0.00029315,4]
[328024997,1716774676268,-500.0,0.00029315,4]
[328024998,1716774676278,-500.0,0.00029315,4]
[328024999,1716774676288,-500.0,0.00029315,4]
[328025000,1716774676298,-1562.49,0.00029315,4]
[328025001,1716774676307,-500.0,0.00029315,4]
[328025002,1716774676317,-500.0,0.00029315,4]
[328025003,1716774676326,-500.0,0.00029315,4]
[328025004,1716774676336,-500.0,0.00029315,4]
[328025005,1716774676346,-500.0,0.00029315,4]
[328025006,1716774676355,-500.0,0.00029315,4]
[328025007,1716774676365,-500.0,0.00029315,4]
[328025008,1716774676374,-1201.55,0.00029315,4]
[328025009,1716774676384,-500.0,0.00029315,4]
[328025010,1716774676393,-244.78460845,0.00029315,4]
[328025011,1716774676402,-545.25,0.00029315,4]
[328025012,1716774676410,-500.0,0.00029315,4]
[328025013,1716774676419,-500.0,0.00029315,4]
[328025014,1716774676428,-500.0,0.00029315,4]
[328025015,1716774676437,-500.0,0.00029315,4]
[328025016,1716774676446,-500.0,0.00029315,4]
[328025017,1716774676455,-753.55,0.00029315,4]
[328025018,1716774676464,-500.0,0.00029315,4]
[328025019,1716774676473,-500.0,0.00029315,4]
[328025020,1716774676482,-500.0,0.00029315,4]
[328025021,1716774676491,-500.0,0.00029315,4]
[328025022,1716774676500,-500.0,0.00029315,4]
[328025023,1716774676509,-500.0,0.00029315,4]
[328025024,1716774676518,-1011.37,0.00029315,4]
[328025025,1716774676528,-666.41,0.00029315,4]
[328025026,1716774676537,-500.0,0.00029315,4]
[328025027,1716774676546,-1614.98,0.00029315,4]
[328025028,1716774676555,-500.0,0.00029315,4]
[328025029,1716774676564,-500.0,0.00029315,4]
[328025030,1716774676574,-801.81,0.00029315,4]
[328025031,1716774676583,-664.62,0.00029315,4]
[328025032,1716774676591,-500.0,0.00029315,4]
[328025033,1716774676600,-500.0,0.00029315,4]
[328025034,1716774676610,-584.07,0.00029315,4]
[328025035,1716774676619,-500.0,0.00029315,4]
[328025036,1716774676628,-1253.98,0.00029315,4]
[328025037,1716774676639,-500.0,0.00029315,4]
[328025038,1716774676648,-1261.26,0.00029315,4]
[328025039,1716774676657,-576.77,0.00029315,4]
[328025040,1716774676667,-500.0,0.00029315,4]
[328025041,1716774676675,-500.0,0.00029315,4]
[328025042,1716774676684,-500.0,0.00029315,4]
[328025043,1716774676694,-1690.76,0.00029315,4]
[328025044,1716774676703,-603.3,0.00029315,4]
[328025045,1716774676712,-500.0,0.00029315,4]
[328025046,1716774676721,-500.0,0.00029315,4]
[328025047,1716774676730,-500.0,0.00029315,4]
[328025048,1716774676740,-500.0,0.00029315,4]
[328025049,1716774676749,-12954.13,0.00029315,4]
[328025050,1716774676758,-500.0,0.00029315,4]
[328025051,1716774676767,-500.0,0.00029315,4]
[328025052,1716774676777,-500.0,0.00029315,4]
[328025053,1716774676787,-500.0,0.00029315,4]
[328025054,1716774676795,-500.0,0.00029315,4]
[328025055,1716774676805,-500.0,0.00029315,4]
[328025056,1716774676814,-162.12,0.000294,2]
[328025057,1716774676823,-216.323,0.00029408,2]
[328025058,1716774676832,-5139.0,0.00029408,2]
[328025059,1716774676842,-1062.0,0.00029408,2]
[328025060,1716774676851,-176.973604,0.00029467,2]
[328025061,1716774676860,-215.90757033,0.00029562,30]
[328025062,1716774676869,-1779.9411,0.00029587,2]
[328025063,1716774676879,-155.35730081,0.00029587,2]
[328025064,1716774676891,-7600.0,0.00029587,2]
[328025065,1716774676901,-155.41458873,0.00029587,2]
[328025066,1716774676910,-296.24192219,0.00029587,2]
[328025067,1716774676919,-155.14319116,0.00029587,2]
[328025068,1716774676929,-1268.55134131,0.00029587,2]
[328025069,1716774676939,-150.0,0.00029588,2]
[328025070,1716774676948,-626.89588157,0.00029589,4]
[328025071,1716774676958,-500.0,0.00029589,4]
[328025072,1716774676967,-232.02329603,0.00029589,4]
[328025073,1716774676976,-500.0,0.00029589,4]
[328025074,1716774676986,-500.0,0.00029589,4]
[328025075,1716774676995,-598.05743564,0.00029589,4]
[328025076,1716774677004,-500.0,0.00029589,4]
[328025077,1716774677014,-500.0,0.00029589,4]
[328025078,1716774677025,-548.99,0.00029589,4]
[328025079,1716774677035,-623.54,0.00029589,4]
[328025080,1716774677044,-500.0,0.00029589,4]
[328025081,1716774677053,-500.0,0.00029589,4]
[328025082,1716774677062,-500.0,0.00029589,4]
[328025083,1716774677071,-500.0,0.00029589,4]
[328025084,1716774677082,-616.30049614,0.00029589,4]
[328025085,1716774677092,-500.0,0.00029589,4]
[328025086,1716774677101,-500.0,0.00029589,4]
[328025087,1716774677111,-500.0,0.00029589,4]
[328025088,1716774677120,-500.0,0.00029589,4]
[328025089,1716774677130,-500.0,0.00029589,4]
[328025090,1716774677141,-500.0,0.00029589,4]
[328025091,1716774677151,-500.0,0.00029589,4]
[328025092,1716774677160,-500.0,0.00029589,4]
[328025093,1716774677169,-500.0,0.00029589,4]
[328025094,1716774677179,-178.55905496,0.00029589,4]
[328025095,1716774677189,-500.0,0.00029589,4]
[328025096,1716774677201,-500.0,0.00029589,4]
[328025097,1716774677211,-576.33483763,0.00029589,4]
[328025098,1716774677224,-247.17236321,0.00029589,4]
[328025099,1716774677234,-500.0,0.00029589,4]
[328025100,1716774677243,-500.0,0.00029589,4]
[328025101,1716774677253,-500.0,0.00029589,4]
[328025102,1716774677263,-500.0,0.00029589,4]
[328025103,1716774677272,-716.7,0.00029589,4]
[328025104,1716774677281,-500.0,0.00029589,4]
[328025105,1716774677290,-500.0,0.00029589,4]
[328025106,1716774677299,-500.0,0.00029589,4]
[328025107,1716774677309,-500.0,0.00029589,4]
[328025108,1716774677318,-301.53404888,0.00029589,4]
[328025109,1716774677328,-285.58646519,0.00029589,4]
[328025110,1716774677337,-500.0,0.00029589,4]
[328025111,1716774677347,-500.0,0.00029589,4]
[328025112,1716774677356,-500.0,0.00029589,4]
[328025113,1716774677366,-500.0,0.00029589,4]
[328025114,1716774677375,-475.58730294,0.00029589,4]
[328025115,1716774677389,-500.0,0.00029589,4]
[328025116,1716774677399,-500.0,0.00029589,4]
[328025117,1716774677408,-500.0,0.00029589,4]
[328025118,1716774677417,-520.81,0.00029589,4]
[328025119,1716774677426,-500.0,0.00029589,4]
[328025120,1716774677435,-500.0,0.00029589,4]
[328025121,1716774677445,-500.0,0.00029589,4]
[328025122,1716774677454,-226.2360149,0.00029589,4]
[328025123,1716774677463,-500.0,0.00029589,4]
[328025124,1716774677473,-500.0,0.00029589,4]
[328025125,1716774677482,-560.83813865,0.00029589,4]
[328025126,1716774677491,-500.0,0.00029589,4]
[328025127,1716774677502,-500.0,0.00029589,4]
[328025128,1716774677512,-500.0,0.00029589,4]
[328025129,1716774677520,-500.0,0.00029589,4]
[328025130,1716774677530,-500.0,0.00029589,4]
[328025131,1716774677540,-500.0,0.00029589,4]
[328025132,1716774677549,-500.0,0.00029589,4]
[328025133,1716774677560,-500.0,0.00029589,4]
[328025134,1716774677569,-500.0,0.00029589,4]
[328025135,1716774677578,-500.0,0.00029589,4]
[328025136,1716774677588,-500.0,0.00029589,4]
[328025137,1716774677598,-500.0,0.00029589,4]
[328025138,1716774677607,-502.71,0.00029589,4]
[328025139,1716774677616,-172.37941593,0.00029589,4]
[328025140,1716774677626,-525.05282081,0.00029589,4]
[328025141,1716774677639,-809.78,0.00029589,4]
[328025142,1716774677648,-500.0,0.00029589,4]
[328025143,1716774677658,-500.0,0.00029589,4]
[328025144,1716774677667,-920.26,0.00029589,4]
[328025145,1716774677676,-536.37735662,0.00029589,4]
[328025146,1716774677685,-500.0,0.00029589,4]
[328025147,1716774677694,-500.0,0.00029589,4]
[328025148,1716774677703,-522.9,0.00029589,4]
[328025149,1716774677712,-500.0,0.00029589,4]
[328025150,1716774677721,-500.0,0.00029589,4]
[328025151,1716774677730,-559.7,0.00029589,4]
[328025152,1716774677739,-3246.39,0.00029589,4]
[328025153,1716774677748,-500.0,0.00029589,4]
[328025154,1716774677757,-850.87,0.00029589,4]
[328025155,1716774677766,-500.0,0.00029589,4]
[328025156,1716774677775,-534.39010927,0.00029589,4]
[328025157,1716774677784,-500.0,0.00029589,4]
[328025158,1716774677793,-1876.14,0.00029589,4]
[328025159,1716774677803,-500.0,0.00029589,4]
[328025160,1716774677812,-500.0,0.00029589,4]
[328025161,1716774677821,-1150.71,0.00029589,4]
[328025162,1716774677831,-500.0,0.00029589,4]
[328025163,1716774677840,-500.0,0.00029589,4]
[328025164,1716774677849,-3298.05,0.00029589,4]
[328025165,1716774677859,-500.0,0.00029589,4]
[328025166,1716774677867,-500.0,0.00029589,4]
[328025167,1716774677876,-665.62,0.00029589,4]
[328025168,1716774677887,-500.0,0.00029589,4]
[328025169,1716774677896,-209.27864613,0.00029589,4]
[328025170,1716774677905,-500.0,0.00029589,4]
[328025171,1716774677914,-1737.1,0.00029589,4]
[328025172,1716774677923,-500.0,0.00029589,4]
[328025173,1716774677932,-500.0,0.00029589,4]
[328025174,1716774677941,-589.83,0.00029589,4]
[328025175,1716774677949,-629.83145897,0.00029589,4]
[328025176,1716774677959,-1057.8,0.00029589,4]
[328025177,1716774677968,-500.0,0.00029589,4]
[328025178,1716774677977,-500.0,0.00029589,4]
[328025179,1716774677986,-500.0,0.00029589,4]
[328025180,1716774677995,-420.83379217,0.00029589,4]
[328025181,1716774678005,-538.99,0.00029589,4]
[328025182,1716774678015,-1379.1,0.00029589,4]
[328025183,1716774678025,-674.64,0.00029589,4]
[328025184,1716774678034,-608.05302823,0.00029589,4]
[328025185,1716774678044,-500.0,0.00029589,4]
[328025186,1716774678053,-500.0,0.00029589,4]
[328025187,1716774678063,-903.17,0.00029589,4]
[328025188,1716774678072,-500.0,0.00029589,4]
[328025189,1716774678082,-395.43993235,0.00029589,4]
[328025190,1716774678092,-500.0,0.00029589,4]
[328025191,1716774678101,-500.0,0.00029589,4]
[328025192,1716774678111,-500.0,0.00029589,4]
[328025193,1716774678120,-500.0,0.00029589,4]
[328025194,1716774678129,-500.0,0.00029589,4]
[328025195,1716774678140,-500.0,0.00029589,4]
[328025196,1716774678149,-500.0,0.00029589,4]
[328025197,1716774678158,-500.0,0.00029589,4]
[328025198,1716774678167,-500.0,0.00029589,4]
[328025199,1716774678177,-500.0,0.00029589,4]
[328025200,1716774678186,-500.0,0.00029589,4]
[328025201,1716774678195,-500.0,0.00029589,4]
[328025202,1716774678204,-500.0,0.00029589,4]
[328025203,1716774678214,-1792.24,0.00029589,4]
[328025204,1716774678228,-290.2733362,0.00029589,4]
[328025205,1716774678238,-500.0,0.00029589,4]
[328025206,1716774678247,-500.0,0.00029589,4]
[328025207,1716774678256,-500.0,0.00029589,4]
[328025208,1716774678266,-500.0,0.00029589,4]
[328025209,1716774678275,-500.0,0.00029589,4]
[328025210,1716774678285,-500.0,0.00029589,4]
[328025211,1716774678294,-555.55,0.00029589,4]
[328025212,1716774678303,-500.0,0.00029589,4]
[328025213,1716774678314,-500.0,0.00029589,4]
[328025214,1716774678322,-500.0,0.00029589,4]
[328025215,1716774678332,-500.0,0.00029589,4]
[328025216,1716774678341,-500.0,0.00029589,4]
[328025217,1716774678350,-554.9,0.00029589,4]
[328025218,1716774678359,-332.76058578,0.00029589,4]
[328025219,1716774678369,-500.0,0.00029589,4]
[328025220,1716774678378,-593.69,0.00029589,4]
[328025221,1716774678390,-1375.79,0.00029589,4]
[328025222,1716774678399,-797.4,0.00029589,4]
[328025223,1716774678408,-500.0,0.00029589,4]
[328025224,1716774678417,-500.0,0.00029589,4]
[328025225,1716774678427,-500.0,0.00029589,4]
[328025226,1716774678440,-811.5,0.00029589,4]
[328025227,1716774678448,-513.03700221,0.00029589,4]
[328025228,1716774678457,-500.0,0.00029589,4]
[328025229,1716774678468,-500.0,0.00029589,4]
[328025230,1716774678478,-500.0,0.00029589,4]
[328025231,1716774678487,-500.0,0.00029589,4]
[328025232,1716774678497,-752.63,0.00029589,4]
[328025233,1716774678506,-500.0,0.00029589,4]
[328025234,1716774678516,-500.0,0.00029589,4]
[328025235,1716774678525,-500.0,0.00029589,4]
[328025236,1716774678535,-508.3,0.00029589,4]
[328025237,1716774678544,-500.0,0.00029589,4]
[328025238,1716774678553,-500.0,0.00029589,4]
[328025239,1716774678566,-500.0,0.00029589,4]
[328025240,1716774678575,-612.14,0.00029589,4]
[328025241,1716774678584,-500.0,0.00029589,4]
[328025242,1716774678593,-500.0,0.00029589,4]
[328025243,1716774678603,-339.19948561,0.00029589,4]
[328025244,1716774678612,-500.0,0.00029589,4]
[328025245,1716774678621,-1562.49,0.00029589,4]
[328025246,1716774678630,-500.0,0.00029589,4]
[328025247,1716774678640,-500.0,0.00029589,4]
[328025248,1716774678650,-500.0,0.00029589,4]
[328025249,1716774678660,-500.0,0.00029589,4]
[328025250,1716774678670,-500.0,0.00029589,4]
[328025251,1716774678680,-500.0,0.00029589,4]
[328025252,1716774678690,-500.0,0.00029589,4]
[328025253,1716774678699,-1201.55,0.00029589,4]
[328025254,1716774678708,-500.0,0.00029589,4]
[328025255,1716774678718,-545.25,0.00029589,4]
[328025256,1716774678727,-642.321189,0.00029589,4]
[328025257,1716774678736,-601.59082897,0.00029589,4]
[328025258,1716774678745,-569.48097611,0.00029589,4]
[328025259,1716774678754,-500.0,0.00029589,4]
[328025260,1716774678764,-500.0,0.00029589,4]
[328025261,1716774678773,-753.55,0.00029589,4]
[328025262,1716774678782,-303.18,0.00029589,4]
[328025263,1716774678792,-205.09856606,0.00029589,4]
[328025264,1716774678801,-500.0,0.00029589,4]
[328025265,1716774678810,-500.0,0.00029589,4]
[328025266,1716774678819,-638.32270102,0.00029589,4]
[328025267,1716774678829,-500.0,0.00029589,4]
[328025268,1716774678839,-1011.37,0.00029589,4]
[328025269,1716774678848,-666.41,0.00029589,4]
[328025270,1716774678859,-500.0,0.00029589,4]
[328025271,1716774678868,-1614.98,0.00029589,4]
[328025272,1716774678877,-500.0,0.00029589,4]
[328025273,1716774678887,-500.0,0.00029589,4]
[328025274,1716774678896,-801.81,0.00029589,4]
[328025275,1716774678906,-664.62,0.00029589,4]
[328025276,1716774678915,-500.0,0.00029589,4]
[328025277,1716774678924,-500.0,0.00029589,4]
[328025278,1716774678933,-584.07,0.00029589,4]
[328025279,1716774678943,-500.0,0.00029589,4]
[328025280,1716774678952,-1253.98,0.00029589,4]
[328025281,1716774678961,-500.0,0.00029589,4]
[328025282,1716774678971,-1261.26,0.00029589,4]
[328025283,1716774678980,-576.77,0.00029589,4]
[328025284,1716774678990,-500.0,0.00029589,4]
[328025285,1716774678999,-500.0,0.00029589,4]
[328025286,1716774679008,-500.0,0.00029589,4]
[328025287,1716774679017,-1690.76,0.00029589,4]
[328025288,1716774679027,-603.3,0.00029589,4]
[328025289,1716774679037,-500.0,0.00029589,4]
[328025290,1716774679046,-500.0,0.00029589,4]
[328025291,1716774679056,-500.0,0.00029589,4]
[328025292,1716774679066,-500.0,0.00029589,4]
[328025293,1716774679075,-12954.13,0.00029589,4]
[328025294,1716774679084,-500.0,0.00029589,4]
[328025295,1716774679094,-500.0,0.00029589,4]
[328025296,1716774679104,-500.0,0.00029589,4]
[328025297,1716774679113,-500.0,0.00029589,4]
[328025298,1716774679122,-500.0,0.00029589,4]
[328025299,1716774679132,-3752.0,0.000296,2]
[328025300,1716774679142,-1000.0,0.000296,2]
[328025301,1716774679152,-3219.0,0.000298,4]
[328025302,1716774679161,-1040.30806754,0.00029858,5]
[328025303,1716774679171,-589.13497615,0.00029861,2]
[328025304,1716774679180,-155.15958444,0.00029861,2]
[328025305,1716774679189,-5531.5254675,0.00029861,2]
[328025306,1716774679198,-249.57057659,0.00029862,2]
[328025307,1716774679208,-6793.21939364,0.00029862,2]
[328025308,1716774679217,-159.1130414,0.00029862,2]
[328025309,1716774679228,-500.0,0.00029863,4]
[328025310,1716774679239,-500.0,0.00029863,4]
[328025311,1716774679248,-500.0,0.00029863,4]
[328025312,1716774679257,-500.0,0.00029863,4]
[328025313,1716774679267,-453.59755805,0.00029863,4]
[328025314,1716774679277,-548.99,0.00029863,4]
[328025315,1716774679287,-623.54,0.00029863,4]
[328025316,1716774679297,-500.0,0.00029863,4]
[328025317,1716774679308,-500.0,0.00029863,4]
[328025318,1716774679317,-481.56184142,0.00029863,4]
[328025319,1716774679326,-500.0,0.00029863,4]
[328025320,1716774679335,-500.0,0.00029863,4]
[328025321,1716774679344,-500.0,0.00029863,4]
[328025322,1716774679354,-500.0,0.00029863,4]
[328025323,1716774679363,-500.0,0.00029863,4]
[328025324,1716774679372,-500.0,0.00029863,4]
[328025325,1716774679382,-500.0,0.00029863,4]
[328025326,1716774679392,-500.0,0.00029863,4]
[328025327,1716774679402,-500.0,0.00029863,4]
[328025328,1716774679411,-500.0,0.00029863,4]
[328025329,1716774679421,-500.0,0.00029863,4]
[328025330,1716774679430,-500.0,0.00029863,4]
[328025331,1716774679439,-500.0,0.00029863,4]
[328025332,1716774679449,-500.0,0.00029863,4]
[328025333,1716774679458,-500.0,0.00029863,4]
[328025334,1716774679468,-500.0,0.00029863,4]
[328025335,1716774679477,-716.7,0.00029863,4]
[328025336,1716774679487,-371.21181824,0.00029863,4]
[328025337,1716774679497,-500.0,0.00029863,4]
[328025338,1716774679506,-500.0,0.00029863,4]
[328025339,1716774679516,-500.0,0.00029863,4]
[328025340,1716774679525,-500.0,0.00029863,4]
[328025341,1716774679535,-500.0,0.00029863,4]
[328025342,1716774679544,-500.0,0.00029863,4]
[328025343,1716774679553,-334.34437468,0.00029863,4]
[328025344,1716774679562,-500.0,0.00029863,4]
[328025345,1716774679571,-500.0,0.00029863,4]
[328025346,1716774679581,-369.84491503,0.00029863,4]
[328025347,1716774679590,-520.81,0.00029863,4]
[328025348,1716774679599,-500.0,0.00029863,4]
[328025349,1716774679608,-500.0,0.00029863,4]
[328025350,1716774679619,-500.0,0.00029863,4]
[328025351,1716774679628,-500.0,0.00029863,4]
[328025352,1716774679642,-500.0,0.00029863,4]
[328025353,1716774679652,-500.0,0.00029863,4]
[328025354,1716774679662,-500.0,0.00029863,4]
[328025355,1716774679671,-500.0,0.00029863,4]
[328025356,1716774679681,-279.01904172,0.00029863,4]
[328025357,1716774679690,-500.0,0.00029863,4]
[328025358,1716774679700,-500.0,0.00029863,4]
[328025359,1716774679709,-500.0,0.00029863,4]
[328025360,1716774679719,-500.0,0.00029863,4]
[328025361,1716774679728,-500.0,0.00029863,4]
[328025362,1716774679737,-500.0,0.00029863,4]
[328025363,1716774679746,-434.89017413,0.00029863,4]
[328025364,1716774679756,-500.0,0.00029863,4]
[328025365,1716774679765,-502.71,0.00029863,4]
[328025366,1716774679774,-809.78,0.00029863,4]
[328025367,1716774679784,-500.0,0.00029863,4]
[328025368,1716774679793,-500.0,0.00029863,4]
[328025369,1716774679803,-920.26,0.00029863,4]
[328025370,1716774679812,-500.0,0.00029863,4]
[328025371,1716774679821,-461.83865053,0.00029863,4]
[328025372,1716774679830,-522.9,0.00029863,4]
[328025373,1716774679840,-500.0,0.00029863,4]
[328025374,1716774679849,-500.0,0.00029863,4]
[328025375,1716774679858,-559.7,0.00029863,4]
[328025376,1716774679868,-3246.39,0.00029863,4]
[328025377,1716774679878,-213.39674005,0.00029863,4]
[328025378,1716774679891,-850.87,0.00029863,4]
[328025379,1716774679900,-500.0,0.00029863,4]
[328025380,1716774679909,-500.0,0.00029863,4]
[328025381,1716774679918,-1876.14,0.00029863,4]
[328025382,1716774679928,-500.0,0.00029863,4]
[328025383,1716774679936,-500.0,0.00029863,4]
[328025384,1716774679946,-1150.71,0.00029863,4]
[328025385,1716774679955,-233.04,0.00029863,4]
[328025386,1716774679965,-500.0,0.00029863,4]
[328025387,1716774679975,-3298.05,0.00029863,4]
[328025388,1716774679985,-500.0,0.00029863,4]
[328025389,1716774679995,-374.37438104,0.00029863,4]
[328025390,1716774680004,-665.62,0.00029863,4]
[328025391,1716774680014,-500.0,0.00029863,4]
[328025392,1716774680024,-500.0,0.00029863,4]
[328025393,1716774680033,-1737.1,0.00029863,4]
[328025394,1716774680043,-500.0,0.00029863,4]
[328025395,1716774680052,-500.0,0.00029863,4]
[328025396,1716774680062,-589.83,0.00029863,4]
[328025397,1716774680071,-1057.8,0.00029863,4]
[328025398,1716774680080,-500.0,0.00029863,4]
[328025399,1716774680089,-500.0,0.00029863,4]
[328025400,1716774680099,-500.0,0.00029863,4]
[328025401,1716774680109,-538.99,0.00029863,4]
[328025402,1716774680119,-1379.1,0.00029863,4]
[328025403,1716774680129,-674.64,0.00029863,4]
[328025404,1716774680144,-500.0,0.00029863,4]
[328025405,1716774680154,-500.0,0.00029863,4]
[328025406,1716774680163,-903.17,0.00029863,4]
[328025407,1716774680172,-500.0,0.00029863,4]
[328025408,1716774680181,-500.0,0.00029863,4]
[328025409,1716774680190,-500.0,0.00029863,4]
[328025410,1716774680200,-500.0,0.00029863,4]
[328025411,1716774680209,-500.0,0.00029863,4]
[328025412,1716774680222,-469.77436692,0.00029863,4]
[328025413,1716774680232,-500.0,0.00029863,4]
[328025414,1716774680241,-500.0,0.00029863,4]
[328025415,1716774680320,-500.0,0.00029863,4]
[328025416,1716774680357,-500.0,0.00029863,4]
[328025417,1716774680367,-500.0,0.00029863,4]
[328025418,1716774680376,-500.0,0.00029863,4]
[328025419,1716774680388,-500.0,0.00029863,4]
[328025420,1716774680399,-500.0,0.00029863,4]
[328025421,1716774680408,-1792.24,0.00029863,4]
[328025422,1716774680417,-500.0,0.00029863,4]
[328025423,1716774680427,-500.0,0.00029863,4]
[328025424,1716774680436,-500.0,0.00029863,4]
[328025425,1716774680446,-500.0,0.00029863,4]
[328025426,1716774680455,-500.0,0.00029863,4]
[328025427,1716774680466,-500.0,0.00029863,4]
[328025428,1716774680475,-555.55,0.00029863,4]
[328025429,1716774680485,-500.0,0.00029863,4]
[328025430,1716774680495,-500.0,0.00029863,4]
[328025431,1716774680504,-500.0,0.00029863,4]
[328025432,1716774680515,-500.0,0.00029863,4]
[328025433,1716774680524,-511.98270529,0.00029863,4]
[328025434,1716774680534,-554.9,0.00029863,4]
[328025435,1716774680544,-500.0,0.00029863,4]
[328025436,1716774680554,-593.69,0.00029863,4]
[328025437,1716774680564,-1375.79,0.00029863,4]